fUSD/lending_fUSD_20240409
["ID","MTS","AMOUNT","RATE_DAILY","PERIOD"]
[321950960,1712647860942,-500.0,0.00021095,2]
[321950961,1712647860951,-500.0,0.00021095,2]
[321950962,1712647860960,-852.4,0.00021095,2]
[321950963,1712647860969,-500.0,0.00021095,2]
[321950964,1712647860978,-596.38,0.00021095,2]
[321950965,1712647860987,-775.98,0.00021095,2]
[321950966,1712647860997,-1373.87,0.00021095,2]
[321950967,1712647861006,-500.0,0.00021095,2]
[321950968,1712647861016,-1830.92,0.00021095,2]
[321950969,1712647861026,-989.62,0.00021095,2]
[321950970,1712647861037,-500.0,0.00021095,2]
[321950971,1712647861047,-500.0,0.00021095,2]
[321950972,1712647861057,-1129.9,0.00021095,2]
[321950973,1712647861066,-500.0,0.00021095,2]
[321950974,1712647861077,-661.98,0.00021095,2]
[321950975,1712647861086,-500.0,0.00021095,2]
[321950976,1712647861095,-715.89,0.00021095,2]
[321950977,1712647861105,-500.0,0.00021095,2]
[321950978,1712647861114,-533.3,0.00021095,2]
[321950979,1712647861123,-500.0,0.00021095,2]
[321950980,1712647861133,-500.0,0.00021095,2]
[321950981,1712647861143,-500.0,0.00021095,2]
[321950982,1712647861154,-500.0,0.00021095,2]
[321950983,1712647861163,-500.0,0.00021095,2]
[321950984,1712647861173,-500.0,0.00021095,2]
[321950985,1712647861183,-2068.8,0.00021095,2]
[321950986,1712647861192,-1472.14,0.00021095,2]
[321950987,1712647861202,-1353.94,0.00021095,2]
[321950988,1712647861211,-500.0,0.00021095,2]
[321950989,1712647861221,-509.88644788,0.00021095,2]
[321950990,1712647861232,-1102.15,0.00021095,2]
[321950991,1712647861241,-1471.54,0.00021095,2]
[321950992,1712647861250,-514.60766295,0.00021095,2]
[321950993,1712647861260,-500.0,0.00021095,2]
[321950994,1712647861270,-1694.75,0.00021095,2]
[321950995,1712647861280,-500.0,0.00021095,2]
[321950996,1712647861289,-500.0,0.00021095,2]
[321950997,1712647861298,-500.0,0.00021095,2]
[321950998,1712647861307,-614.72,0.00021095,2]
[321950999,1712647861317,-1412.89,0.00021095,2]
[321951000,1712647861326,-500.0,0.00021095,2]
[321951001,1712647861336,-449.02224271,0.00021095,2]
[321951002,1712647861345,-500.0,0.00021095,2]
[321951003,1712647861355,-500.0,0.00021095,2]
[321951004,1712647861365,-2170.22,0.00021095,2]
[321951005,1712647861375,-500.0,0.00021095,2]
[321951006,1712647861384,-1064.61,0.00021095,2]
[321951007,1712647861394,-1156.68,0.00021095,2]
[321951008,1712647861403,-556.69,0.00021095,2]
[321951009,1712647861413,-505.16525435,0.00021095,2]
[321951010,1712647861422,-500.0,0.00021095,2]
[321951011,1712647861432,-500.0,0.00021095,2]
[321951012,1712647861446,-500.0,0.00021095,2]
[321951013,1712647861456,-532.87256993,0.00021095,2]
[321951014,1712647861466,-1650.38,0.00021095,2]
[321951015,1712647861475,-509.37,0.00021095,2]
[321951016,1712647861485,-500.0,0.00021095,2]
[321951017,1712647861495,-418.12811936,0.00021095,2]
[321951018,1712647861504,-1875.07,0.00021095,2]
[321951019,1712647861514,-500.0,0.00021095,2]
[321951020,1712647861523,-500.0,0.00021095,2]
[321951021,1712647861534,-500.0,0.00021095,2]
[321951022,1712647861543,-1637.75,0.00021095,2]
[321951023,1712647861552,-500.0,0.00021095,2]
[321951024,1712647861561,-500.0,0.00021095,2]
[321951025,1712647861571,-500.0,0.00021095,2]
[321951026,1712647861580,-500.0,0.00021095,2]
[321951027,1712647861590,-525.72281443,0.00021095,2]
[321951028,1712647861599,-509.16,0.00021095,2]
[321951029,1712647861608,-500.0,0.00021095,2]
[321951030,1712647861618,-500.0,0.00021095,2]
[321951031,1712647861627,-1600.04,0.00021095,2]
[321951032,1712647861637,-731.74,0.00021095,2]
[321951033,1712647861646,-535.88,0.00021095,2]
[321951034,1712647861655,-500.0,0.00021095,2]
[321951035,1712647861664,-500.0,0.00021095,2]
[321951036,1712647861673,-500.0,0.00021095,2]
[321951037,1712647861682,-593.54,0.00021095,2]
[321951038,1712647861692,-2536.93,0.00021095,2]
[321951039,1712647861701,-500.0,0.00021095,2]
[321951040,1712647861710,-500.0,0.00021095,2]
[321951041,1712647861720,-500.0,0.00021095,2]
[321951042,1712647861730,-500.0,0.00021095,2]
[321951043,1712647861742,-500.0,0.00021095,2]
[321951044,1712647861759,-500.0,0.00021095,2]
[321951045,1712647861780,-4477.85,0.00021095,2]
[321951046,1712647861795,-500.0,0.00021095,2]
[321951047,1712647861804,-2192.56,0.00021095,2]
[321951048,1712647861814,-504.01576661,0.00021095,2]
[321951049,1712647861823,-1851.82,0.00021095,2]
[321951050,1712647861833,-500.0,0.00021095,2]
[321951051,1712647861842,-500.0,0.00021095,2]
[321951052,1712647861851,-500.0,0.00021095,2]
[321951053,1712647861860,-1796.1,0.00021095,2]
[321951054,1712647861869,-500.0,0.00021095,2]
[321951055,1712647861878,-500.0,0.00021095,2]
[321951056,1712647861888,-676.63,0.00021095,2]
[321951057,1712647861898,-1171.67,0.00021095,2]
[321951058,1712647861908,-1185.64,0.00021095,2]
[321951059,1712647861920,-561.5,0.00021095,2]
[321951060,1712647861930,-821.92,0.00021095,2]
[321951061,1712647861941,-500.0,0.00021095,2]
[321951062,1712647861950,-500.0,0.00021095,2]
[321951063,1712647861959,-500.0,0.00021095,2]
[321951064,1712647861969,-500.0,0.00021095,2]
[321951065,1712647861979,-500.0,0.00021095,2]
[321951066,1712647861988,-500.0,0.00021095,2]
[321951067,1712647861997,-537.05,0.00021095,2]
[321951068,1712647862006,-500.0,0.00021095,2]
[321951069,1712647862015,-1667.32,0.00021095,2]
[321951070,1712647862027,-1603.54,0.00021095,2]
[321951071,1712647862036,-500.0,0.00021095,2]
[321951072,1712647862044,-507.01154275,0.00021095,2]
[321951073,1712647862053,-500.0,0.00021095,2]
[321951074,1712647862062,-500.0,0.00021095,2]
[321951075,1712647862071,-500.0,0.00021095,2]
[321951076,1712647862080,-500.0,0.00021095,2]
[321951077,1712647862088,-792.44,0.00021095,2]
[321951078,1712647862097,-677.84,0.00021095,2]
[321951079,1712647862106,-1166.89,0.00021095,2]
[321951080,1712647862115,-500.0,0.00021095,2]
[321951081,1712647862124,-1315.26,0.00021095,2]
[321951082,1712647862134,-500.0,0.00021095,2]
[321951083,1712647862143,-886.56,0.00021095,2]
[321951084,1712647862156,-502.23214815,0.00021095,2]
[321951085,1712647862164,-2550.7,0.00021095,2]
[321951086,1712647862173,-500.0,0.00021095,2]
[321951087,1712647862182,-1109.99,0.00021095,2]
[321951088,1712647862191,-500.0,0.00021095,2]
[321951089,1712647862201,-1055.08,0.00021095,2]
[321951090,1712647862210,-500.0,0.00021095,2]
[321951091,1712647862219,-722.2,0.00021095,2]
[321951092,1712647862228,-500.0,0.00021095,2]
[321951093,1712647862239,-500.0,0.00021095,2]
[321951094,1712647862248,-500.0,0.00021095,2]
[321951095,1712647862259,-204.47893536,0.00021095,2]
[321951096,1712647862268,-505.47238967,0.00021095,2]
[321951097,1712647862277,-545.34,0.00021095,2]
[321951098,1712647862287,-644.79,0.00021095,2]
[321951099,1712647862296,-1234.92,0.00021095,2]
[321951100,1712647862305,-886.73,0.00021095,2]
[321951101,1712647862314,-500.0,0.00021095,2]
[321951102,1712647862323,-500.0,0.00021095,2]
[321951103,1712647862332,-1251.13,0.00021095,2]
[321951104,1712647862342,-500.0,0.00021095,2]
[321951105,1712647862351,-1307.0,0.00021095,2]
[321951106,1712647862362,-520.09793138,0.00021095,2]
[321951107,1712647862371,-500.0,0.00021095,2]
[321951108,1712647862380,-608.83,0.00021095,2]
[321951109,1712647862389,-500.0,0.00021095,2]
[321951110,1712647862398,-500.0,0.00021095,2]
[321951111,1712647862407,-2036.31,0.00021095,2]
[321951112,1712647862417,-500.0,0.00021095,2]
[321951113,1712647862427,-500.0,0.00021095,2]
[321951114,1712647862436,-506.1477877,0.00021095,2]
[321951115,1712647862447,-1348.76,0.00021095,2]
[321951116,1712647862457,-260.81143974,0.00021095,2]
[321951117,1712647862467,-540.44,0.00021095,2]
[321951118,1712647862477,-500.0,0.00021095,2]
[321951119,1712647862487,-500.0,0.00021095,2]
[321951120,1712647862496,-500.0,0.00021095,2]
[321951121,1712647862505,-548.06,0.00021095,2]
[321951122,1712647862514,-1742.91,0.00021095,2]
[321951123,1712647862523,-500.0,0.00021095,2]
[321951124,1712647862532,-500.0,0.00021095,2]
[321951125,1712647862542,-1576.34,0.00021095,2]
[321951126,1712647862551,-500.0,0.00021095,2]
[321951127,1712647862560,-500.0,0.00021095,2]
[321951128,1712647862569,-519.46,0.00021095,2]
[321951129,1712647862578,-2767.61,0.00021095,2]
[321951130,1712647862586,-722.21,0.00021095,2]
[321951131,1712647862595,-2862.65,0.00021095,2]
[321951132,1712647862605,-2757.08,0.00021095,2]
[321951133,1712647862614,-3925.35,0.00021095,2]
[321951134,1712647862623,-500.0,0.00021095,2]
[321951135,1712647862631,-506.86928499,0.00021095,2]
[321951136,1712647862640,-518.4,0.00021095,2]
[321951137,1712647862649,-716.7,0.00021095,2]
[321951138,1712647862662,-1486.09,0.00021095,2]
[321951139,1712647862671,-527.78,0.00021095,2]
[321951140,1712647862680,-2778.05,0.00021095,2]
[321951141,1712647862689,-500.0,0.00021095,2]
[321951142,1712647862700,-500.0,0.00021095,2]
[321951143,1712647862709,-500.0,0.00021095,2]
[321951144,1712647862718,-1195.52,0.00021095,2]
[321951145,1712647862726,-3989.96,0.00021095,2]
[321951146,1712647862736,-1298.58,0.00021095,2]
[321951147,1712647862745,-500.0,0.00021095,2]
[321951148,1712647862753,-1894.96,0.00021095,2]
[321951149,1712647862763,-1377.48,0.00021095,2]
[321951150,1712647862772,-884.64,0.00021095,2]
[321951151,1712647862780,-1915.85,0.00021095,2]
[321951152,1712647862789,-2888.3,0.00021095,2]
[321951153,1712647862798,-500.0,0.00021095,2]
[321951154,1712647862808,-500.0,0.00021095,2]
[321951155,1712647862817,-500.0,0.00021095,2]
[321951156,1712647862826,-1600.76,0.00021095,2]
[321951157,1712647862835,-500.0,0.00021095,2]
[321951158,1712647862844,-500.0,0.00021095,2]
[321951159,1712647862853,-1394.59,0.00021095,2]
[321951160,1712647862862,-507.04879115,0.00021095,2]
[321951161,1712647862872,-1688.78,0.00021095,2]
[321951162,1712647862881,-500.0,0.00021095,2]
[321951163,1712647862890,-500.0,0.00021095,2]
[321951164,1712647862899,-3192.87,0.00021095,2]
[321951165,1712647862908,-3469.23,0.00021095,2]
[321951166,1712647862917,-500.0,0.00021095,2]
[321951167,1712647862926,-1009.95,0.00021095,2]
[321951168,1712647862935,-751.42,0.00021095,2]
[321951169,1712647862946,-516.12318026,0.00021095,2]
[321951170,1712647862955,-9085.79,0.00021095,2]
[321951171,1712647862964,-500.0,0.00021095,2]
[321951172,1712647862973,-954.02,0.00021095,2]
[321951173,1712647862982,-500.0,0.00021095,2]
[321951174,1712647862992,-500.0,0.00021095,2]
[321951175,1712647863001,-500.0,0.00021095,2]
[321951176,1712647863010,-876.05,0.00021095,2]
[321951177,1712647863019,-500.0,0.00021095,2]
[321951178,1712647863028,-500.0,0.00021095,2]
[321951179,1712647863037,-500.0,0.00021095,2]
[321951180,1712647863046,-1263.07,0.00021095,2]
[321951181,1712647863056,-888.52,0.00021095,2]
[321951182,1712647863065,-500.0,0.00021095,2]
[321951183,1712647863075,-500.0,0.00021095,2]
[321951184,1712647863084,-517.47618259,0.00021095,2]
[321951185,1712647863093,-3290.05,0.00021095,2]
[321951186,1712647863103,-1637.23,0.00021095,2]
[321951187,1712647863113,-508.95,0.00021095,2]
[321951188,1712647863123,-1754.98,0.00021095,2]
[321951189,1712647863132,-2423.11,0.00021095,2]
[321951190,1712647863142,-20482.31,0.00021095,2]
[321951191,1712647863154,-502.08031417,0.00021095,2]
[321951192,1712647863163,-20495.45,0.00021095,2]
[321951193,1712647863172,-2250.97,0.00021095,2]
[321951194,1712647863181,-500.0,0.00021095,2]
[321951195,1712647863191,-500.0,0.00021095,2]
[321951196,1712647863204,-3317.25,0.00021095,2]
[321951197,1712647863214,-574.98,0.00021095,2]
[321951198,1712647863224,-507.74141688,0.00021095,2]
[321951199,1712647863233,-13069.4,0.00021095,2]
[321951200,1712647863242,-506.19237059,0.00021095,2]
[321951201,1712647863252,-2661.0,0.00021095,2]
[321951202,1712647863262,-500.0,0.00021095,2]
[321951203,1712647863271,-1586.21,0.00021095,2]
[321951204,1712647863281,-3860.85,0.00021095,2]
[321951205,1712647863290,-500.0,0.00021095,2]
[321951206,1712647863299,-500.0,0.00021095,2]
[321951207,1712647863309,-522.99872109,0.00021095,2]
[321951208,1712647863319,-58503.08,0.00021095,2]
[321951209,1712647863328,-518.90705158,0.00021095,2]
[321951210,1712647863337,-1707.34,0.00021095,2]
[321951211,1712647863347,-3593.0,0.00021095,2]
[321951212,1712647863357,-2225.19,0.00021095,2]
[321951213,1712647863367,-500.0,0.00021095,2]
[321951214,1712647863377,-6382.93,0.00021095,2]
[321951215,1712647863388,-500.0,0.00021095,2]
[321951216,1712647863397,-3591.23,0.00021095,2]
[321951217,1712647863407,-1088.43,0.00021095,2]
[321951218,1712647863417,-500.0,0.00021095,2]
[321951219,1712647863427,-500.0,0.00021095,2]
[321951220,1712647863437,-11930.26,0.00021095,2]
[321951221,1712647863452,-516.31584118,0.00021095,2]
[321951222,1712647863462,-500.0,0.00021095,2]
[321951223,1712647863471,-1205.49,0.00021095,2]
[321951224,1712647863479,-7919.53,0.00021095,2]
[321951225,1712647863488,-500.0,0.00021095,2]
[321951226,1712647863497,-1935.13,0.00021095,2]
[321951227,1712647863507,-228.711202,0.00021095,2]
[321951228,1712647863516,-500.0,0.00021095,2]
[321951229,1712647863525,-500.0,0.00021095,2]
[321951230,1712647863534,-717.03,0.00021095,2]
[321951231,1712647863544,-8767.28,0.00021095,2]
[321951232,1712647863553,-500.0,0.00021095,2]
[321951233,1712647863698,-500.0,0.00021095,2]
[321951234,1712647863708,-521.42,0.00021095,2]
[321951235,1712647863716,-504.35221739,0.00021095,2]
[321951236,1712647863726,-512.23592248,0.00021095,2]
[321951237,1712647863735,-500.0,0.00021095,2]
[321951238,1712647863743,-500.0,0.00021095,2]
[321951239,1712647863751,-977.71,0.00021095,2]
[321951240,1712647863760,-500.0,0.00021095,2]
[321951241,1712647863769,-546.85961053,0.00021095,2]
[321951242,1712647863780,-500.0,0.00021095,2]
[321951243,1712647863789,-5082.85,0.00021095,2]
[321951244,1712647863799,-500.0,0.00021095,2]
[321951245,1712647863809,-1374.79,0.00021095,2]
[321951246,1712647863818,-1931.47,0.00021095,2]
[321951247,1712647863828,-2091.05,0.00021095,2]
[321951248,1712647863837,-7576.88,0.00021095,2]
[321951249,1712647863846,-2152.08,0.00021095,2]
[321951250,1712647863856,-28570.09,0.00021095,2]
[321951251,1712647863865,-500.0,0.00021095,2]
[321951252,1712647863874,-500.0,0.00021095,2]
[321951253,1712647863883,-3007.44,0.00021095,2]
[321951254,1712647863893,-500.0,0.00021095,2]
[321951255,1712647863903,-500.0,0.00021095,2]
[321951256,1712647863912,-500.0,0.00021095,2]
[321951257,1712647863921,-502.96902319,0.00021095,2]
[321951258,1712647863931,-500.0,0.00021095,2]
[321951259,1712647863940,-500.0,0.00021095,2]
[321951260,1712647863953,-556.36714016,0.00021095,2]
[321951261,1712647863963,-910.08,0.00021095,2]
[321951262,1712647863972,-495.00246508,0.00021095,2]
[321951263,1712647863981,-500.0,0.00021095,2]
[321951264,1712647863991,-500.0,0.00021095,2]
[321951265,1712647864000,-404.28883651,0.00021095,2]
[321951266,1712647864010,-3813.93,0.00021095,2]
[321951267,1712647864019,-3463.87,0.00021095,2]
[321951268,1712647864028,-609.05966917,0.00021095,2]
[321951269,1712647864037,-4860.06,0.00021095,2]
[321951270,1712647864046,-518.37660089,0.00021095,2]
[321951271,1712647864055,-3157.47,0.00021095,2]
[321951272,1712647864064,-500.0,0.00021095,2]
[321951273,1712647864073,-2050.12,0.00021095,2]
[321951274,1712647864082,-500.0,0.00021095,2]
[321951275,1712647864091,-500.0,0.00021095,2]
[321951276,1712647864100,-500.0,0.00021095,2]
[321951277,1712647864109,-500.0,0.00021095,2]
[321951278,1712647864118,-4387.43,0.00021095,2]
[321951279,1712647864128,-7079.9,0.00021095,2]
[321951280,1712647864138,-500.0,0.00021095,2]
[321951281,1712647864148,-500.0,0.00021095,2]
[321951282,1712647864157,-500.0,0.00021095,2]
[321951283,1712647864167,-574.72807958,0.00021095,2]
[321951284,1712647864176,-503.08526733,0.00021095,2]
[321951285,1712647864187,-3924.94,0.00021095,2]
[321951286,1712647864198,-500.0,0.00021095,2]
[321951287,1712647864208,-5262.1,0.00021095,2]
[321951288,1712647864218,-8189.72,0.00021095,2]
[321951289,1712647864229,-500.0,0.00021095,2]
[321951290,1712647864238,-500.0,0.00021095,2]
[321951291,1712647864248,-2639.33,0.00021095,2]
[321951292,1712647864258,-1454.33,0.00021095,2]
[321951293,1712647864268,-495.93510727,0.00021095,2]
[321951294,1712647864278,-616.46,0.00021095,2]
[321951295,1712647864288,-1908.74,0.00021095,2]
[321951296,1712647864297,-1282.28,0.00021095,2]
[321951297,1712647864307,-505.36974692,0.00021095,2]
[321951298,1712647864317,-500.0,0.00021095,2]
[321951299,1712647864327,-500.0,0.00021095,2]
[321951300,1712647864336,-931.11,0.00021095,2]
[321951301,1712647864346,-3827.25,0.00021095,2]
[321951302,1712647864356,-500.0,0.00021095,2]
[321951303,1712647864366,-500.0,0.00021095,2]
[321951304,1712647864375,-14038.85,0.00021095,2]
[321951305,1712647864385,-4430.95,0.00021095,2]
[321951306,1712647864394,-500.0,0.00021095,2]
[321951307,1712647864404,-909.9,0.00021095,2]
[321951308,1712647864413,-2170.12,0.00021095,2]
[321951309,1712647864424,-551.45,0.00021095,2]
[321951310,1712647864433,-26397.72,0.00021095,2]
[321951311,1712647864445,-500.0,0.00021095,2]
[321951312,1712647864455,-4091.07,0.00021095,2]
[321951313,1712647864464,-501.87731721,0.00021095,2]
[321951314,1712647864474,-500.0,0.00021095,2]
[321951315,1712647864483,-3039.69,0.00021095,2]
[321951316,1712647864492,-2152.71,0.00021095,2]
[321951317,1712647864502,-673.41,0.00021095,2]
[321951318,1712647864511,-500.0,0.00021095,2]
[321951319,1712647864520,-500.0,0.00021095,2]
[321951320,1712647864530,-4697.85,0.00021095,2]
[321951321,1712647864539,-500.0,0.00021095,2]
[321951322,1712647864549,-500.0,0.00021095,2]
[321951323,1712647864558,-1425.54,0.00021095,2]
[321951324,1712647864568,-3637.0,0.00021095,2]
[321951325,1712647864577,-4194.71,0.00021095,2]
[321951326,1712647864587,-500.0,0.00021095,2]
[321951327,1712647864597,-500.0,0.00021095,2]
[321951328,1712647864606,-560.45,0.00021095,2]
[321951329,1712647864615,-2303.67,0.00021095,2]
[321951330,1712647864624,-579.28,0.00021095,2]
[321951331,1712647864634,-4566.56,0.00021095,2]
[321951332,1712647864643,-503.86799297,0.00021095,2]
[321951333,1712647864653,-500.0,0.00021095,2]
[321951334,1712647864662,-1012.87,0.00021095,2]
[321951335,1712647864672,-545.77512423,0.00021095,2]
[321951336,1712647864681,-2605.85,0.00021095,2]
[321951337,1712647864690,-500.0,0.00021095,2]
[321951338,1712647864703,-1743.94,0.00021095,2]
[321951339,1712647864713,-4131.92,0.00021095,2]
[321951340,1712647864723,-5550.44,0.00021095,2]
[321951341,1712647864733,-2813.07,0.00021095,2]
[321951342,1712647864743,-732.63,0.00021095,2]
[321951343,1712647864752,-11536.91,0.00021095,2]
[321951344,1712647864762,-500.0,0.00021095,2]
[321951345,1712647864772,-530.62000336,0.00021095,2]
[321951346,1712647864781,-500.0,0.00021095,2]
[321951347,1712647864792,-500.0,0.00021095,2]
[321951348,1712647864802,-500.0,0.00021095,2]
[321951349,1712647864812,-500.0,0.00021095,2]
[321951350,1712647864822,-500.0,0.00021095,2]
[321951351,1712647864832,-781.37,0.00021095,2]
[321951352,1712647864841,-4967.09,0.00021095,2]
[321951353,1712647864852,-500.0,0.00021095,2]
[321951354,1712647864861,-11528.61,0.00021095,2]
[321951355,1712647864871,-500.0,0.00021095,2]
[321951356,1712647864881,-500.0,0.00021095,2]
[321951357,1712647864891,-500.0,0.00021095,2]
[321951358,1712647864902,-500.0,0.00021095,2]
[321951359,1712647864912,-22220.97,0.00021095,2]
[321951360,1712647864923,-4414.03,0.00021095,2]
[321951361,1712647864933,-7004.13,0.00021095,2]
[321951362,1712647864944,-1553.14,0.00021095,2]
[321951363,1712647864958,-2000.24,0.00021095,2]
[321951364,1712647864969,-1126.94,0.00021095,2]
[321951365,1712647864979,-500.0,0.00021095,2]
[321951366,1712647864989,-500.0,0.00021095,2]
[321951367,1712647864999,-500.0,0.00021095,2]
[321951368,1712647865009,-1965.34,0.00021095,2]
[321951369,1712647865019,-1425.51,0.00021095,2]
[321951370,1712647865029,-10806.48,0.00021095,2]
[321951371,1712647865040,-935.31,0.00021095,2]
[321951372,1712647865051,-500.0,0.00021095,2]
[321951373,1712647865061,-4518.03,0.00021095,2]
[321951374,1712647865071,-500.0,0.00021095,2]
[321951375,1712647865081,-1610.72,0.00021095,2]
[321951376,1712647865091,-11128.65,0.00021095,2]
[321951377,1712647865101,-500.0,0.00021095,2]
[321951378,1712647865111,-500.0,0.00021095,2]
[321951379,1712647865122,-336.12807002,0.00021095,2]
[321951380,1712647865132,-583.81,0.00021095,2]
[321951381,1712647865143,-224.41295753,0.00021095,2]
[321951382,1712647865157,-515.25876926,0.00021095,2]
[321951383,1712647865167,-8693.02,0.00021095,2]
[321951384,1712647865178,-7861.45,0.00021095,2]
[321951385,1712647865188,-500.0,0.00021095,2]
[321951386,1712647865204,-6545.05,0.00021095,2]
[321951387,1712647865215,-572.09,0.00021095,2]
[321951388,1712647865226,-8301.1,0.00021095,2]
[321951389,1712647865238,-6121.04,0.00021095,2]
[321951390,1712647865249,-5308.61,0.00021095,2]
[321951391,1712647865260,-3100.82,0.00021095,2]
[321951392,1712647865272,-500.0,0.00021095,2]
[321951393,1712647865283,-66192.35,0.00021095,2]
[321951394,1712647865293,-1400.7,0.00021095,2]
[321951395,1712647865303,-500.0,0.00021095,2]
[321951396,1712647865314,-645.1,0.00021095,2]
[321951397,1712647865324,-500.0,0.00021095,2]
[321951398,1712647865334,-935.97,0.00021095,2]
[321951399,1712647865345,-999.6,0.00021095,2]
[321951400,1712647865358,-1936.5,0.00021095,2]
[321951401,1712647865370,-500.0,0.00021095,2]
[321951402,1712647865381,-53006.52,0.00021095,2]
[321951403,1712647865392,-500.0,0.00021095,2]
[321951404,1712647865402,-500.0,0.00021095,2]
[321951405,1712647865412,-500.0,0.00021095,2]
[321951406,1712647865422,-10621.6,0.00021095,2]
[321951407,1712647865432,-4786.17,0.00021095,2]
[321951408,1712647865441,-658.13,0.00021095,2]
[321951409,1712647865453,-2389.24,0.00021095,2]
[321951410,1712647865463,-500.0,0.00021095,2]
[321951411,1712647865473,-500.0,0.00021095,2]
[321951412,1712647865483,-500.0,0.00021095,2]
[321951413,1712647865494,-533.54,0.00021095,2]
[321951414,1712647865503,-500.0,0.00021095,2]
[321951415,1712647865514,-628.15,0.00021095,2]
[321951416,1712647865525,-500.0,0.00021095,2]
[321951417,1712647865535,-6114.99,0.00021095,2]
[321951418,1712647865545,-500.0,0.00021095,2]
[321951419,1712647865556,-8957.23,0.00021095,2]
[321951420,1712647865566,-3697.16,0.00021095,2]
[321951421,1712647865577,-211.05407856,0.00021095,2]
[321951422,1712647865587,-2511.91,0.00021095,2]
[321951423,1712647865597,-500.0,0.00021095,2]
[321951424,1712647865608,-2762.82,0.00021095,2]
[321951425,1712647865618,-500.0,0.00021095,2]
[321951426,1712647865629,-159.47434416,0.00021095,2]
[321951427,1712647865638,-500.0,0.00021095,2]
[321951428,1712647865648,-895.46,0.00021095,2]
[321951429,1712647865658,-500.0,0.00021095,2]
[321951430,1712647865668,-757.32,0.00021095,2]
[321951431,1712647865677,-2276.86,0.00021095,2]
[321951432,1712647865687,-1216.36,0.00021095,2]
[321951433,1712647865699,-707.98,0.00021095,2]
[321951434,1712647865709,-500.0,0.00021095,2]
[321951435,1712647865719,-12872.15,0.00021095,2]
[321951436,1712647865728,-864.59,0.00021095,2]
[321951437,1712647865737,-500.0,0.00021095,2]
[321951438,1712647865747,-500.0,0.00021095,2]
[321951439,1712647865757,-500.0,0.00021095,2]
[321951440,1712647865767,-500.0,0.00021095,2]
[321951441,1712647865776,-508.25666258,0.00021095,2]
[321951442,1712647865785,-500.0,0.00021095,2]
[321951443,1712647865795,-2048.88,0.00021095,2]
[321951444,1712647865805,-1083.6,0.00021095,2]
[321951445,1712647865815,-4094.59,0.00021095,2]
[321951446,1712647865824,-3942.09,0.00021095,2]
[321951447,1712647865836,-730.0058143,0.00021095,2]
[321951448,1712647867726,-438.787,0.00021039,2]
[321951449,1712647867736,-1050.62538875,0.00021095,2]
[321951450,1712647867764,-383.0617127,0.00021095,2]
[321951451,1712647867859,-355.00175508,0.00021095,2]
[321951452,1712647868098,-522.73263,0.00020821,2]
[321951453,1712647868108,-184.30156965,0.00021095,2]
[321951454,1712647868120,-3436.71375952,0.00021095,2]
[321951455,1712647868131,-8222.84,0.00021095,2]
[321951456,1712647868142,-501.74352173,0.00021095,2]
[321951457,1712647868152,-2771.13,0.00021095,2]
[321951458,1712647868164,-4189.8,0.00021095,2]
[321951459,1712647868174,-600.0,0.00021095,2]